bitfinex-derivatives/quotes_ETHF0:USTF0_20220108
["timestamp","ask_amount","ask_price","bid_price","bid_amount"]
[1641645986150,4.47197683,3202.3,3201.7,2.00479]
[1641645986751,0.76690858,3202.1,3201.7,2.00479]
[1641645987152,0.264788,3202.0,3201.7,2.00479]
[1641645987952,1.5,3201.8,3201.7,9e-05]
[1641645988151,1.5,3201.8,3201.0,0.79295273]
[1641645988152,5.95157521,3201.8,3201.0,0.79295273]
[1641645988351,1.5,3201.4,3201.0,0.79295273]
[1641645988751,0.905575,3201.3,3201.0,0.79295273]
[1641645990055,2.00479,3201.1,3201.0,0.79295273]
[1641645990455,2.00479,3201.1,3200.7,0.79295273]
[1641645990656,2.00479,3201.1,3200.7,1.2301833]
[1641645990855,2.269578,3201.1,3200.7,1.2301833]
[1641645991458,2.269578,3201.1,3200.7,0.79295273]
[1641645992559,2.269578,3201.1,3200.6,0.79295273]
[1641645993960,2.269578,3201.1,3200.2,2.08289]
[1641645993961,2.269578,3201.1,3200.7,0.79295273]
[1641645994363,2.00479,3201.1,3200.7,0.79295273]
[1641645994563,2.00479,3201.2,3200.7,0.79295273]
[1641645995065,2.00479,3201.2,3200.8,0.79295273]
[1641645996263,2.00479,3201.2,3201.1,0.79295273]
[1641645996665,2.00479,3201.2,3201.1,1.37405273]
[1641645997466,0.76690858,3201.7,3201.1,1.37405273]
[1641645997865,0.76690858,3201.7,3201.2,0.07809]
[1641645998065,0.76690858,3201.7,3201.2,2.08288]
[1641645998465,0.76690858,3201.8,3201.2,3.3130633]
[1641646000270,2.00479,3201.9,3201.5,0.79295273]
[1641646001569,0.76690858,3201.8,3201.4,0.79295273]
[1641646002773,2.77169858,3201.9,3201.5,0.79295273]
[1641646002969,2.77169858,3201.9,3201.5,1.71585273]
[1641646004073,2.00479,3201.9,3201.6,1.2301833]
[1641646006072,2.00479,3201.9,3201.7,0.79295273]
[1641646007174,2.00479,3201.9,3201.5,1.56111451]
[1641646008275,2.00479,3201.9,3201.4,2.1924016]
[1641646008875,2.269578,3201.9,3201.4,2.1924016]
[1641646009075,2.269578,3201.9,3201.7,0.79573112]
[1641646012478,2.00479,3201.9,3201.7,0.79573112]
[1641646013879,2.00479,3201.9,3201.8,0.79573112]
[1641646016382,3.83135812,3201.9,3201.8,0.79573112]
[1641646016682,3.83135812,3201.9,3201.6,0.43723057]
[1641646017082,3.83135812,3201.9,3201.3,1.3222016]
[1641646017282,3.83135812,3201.9,3201.0,3.08407198]
[1641646017283,2.76798687,3201.9,3201.0,3.08407198]
[1641646017483,3.52574364,3201.9,3201.1,0.07807]
[1641646017683,3.52574364,3201.9,3201.1,0.98007]
[1641646018386,2.00479,3201.5,3201.2,0.43191866]
[1641646018683,2.00479,3201.5,3201.3,0.07807]
[1641646018883,2.00479,3201.9,3201.3,0.07807]
[1641646019085,2.269578,3201.9,3201.2,0.43191866]
[1641646019684,2.269578,3201.9,3201.4,0.43191866]
[1641646020585,2.00479,3201.9,3201.2,1.75412026]
[1641646020786,2.00479,3201.9,3201.2,0.43191866]
[1641646021890,2.00479,3201.9,3201.3,0.07807]
[1641646022784,0.264788,3201.8,3201.3,0.07807]
[1641646022988,0.264788,3201.8,3201.2,1.75412026]
[1641646024386,0.264788,3201.8,3201.4,0.43191866]
[1641646026089,0.264788,3201.8,3201.1,0.43191866]
[1641646026289,2.00479,3201.5,3201.1,0.43191866]
[1641646026491,0.264788,3201.4,3201.1,0.43191866]
[1641646026991,1.529375,3201.4,3201.1,0.43191866]
[1641646027191,1.5,3201.2,3201.1,0.43191866]
[1641646027391,1.764788,3201.2,3201.0,1.3222016]
[1641646027591,0.264788,3201.2,3201.0,1.3222016]
[1641646027791,0.264788,3201.2,3200.8,1.3222016]
[1641646028392,2.00479,3200.9,3200.8,1.3222016]
[1641646028893,2.00479,3200.9,3200.6,0.66447889]
[1641646029096,2.00479,3200.9,3200.4,1.3222016]
[1641646029296,2.00479,3200.9,3200.4,2.8202016]
[1641646030197,2.00479,3200.9,3200.4,1.498]
[1641646033001,2.00479,3200.9,3200.3,1.3222016]
[1641646033301,2.00479,3200.9,3200.4,1.498]
[1641646033504,2.00479,3200.9,3200.4,1.3222016]
[1641646033901,2.00479,3200.9,3200.4,2.8202016]
[1641646034702,2.00479,3200.9,3200.5,0.0781]
[1641646035706,2.00479,3200.9,3200.1,3.59086198]
[1641646035707,2.00479,3200.9,3200.4,1.4003016]
[1641646036006,3.50479,3200.9,3200.4,1.3222016]
[1641646036406,0.264788,3200.8,3200.4,1.3222016]
[1641646037406,2.00479,3200.9,3200.4,1.3222016]
[1641646037615,2.00479,3200.9,3200.4,2.1736016]
[1641646037807,2.00479,3200.9,3200.5,0.0781]
[1641646039011,2.645577,3200.9,3200.5,0.0781]
[1641646039211,2.645577,3200.9,3200.4,0.79549376]
[1641646039612,1.5,3200.5,3200.0,0.031]
[1641646039814,5.005077,3200.9,3200.1,1.3222016]
[1641646040010,4.999609,3200.4,3200.1,1.3222016]
[1641646040211,3.505077,3200.9,3200.1,1.3222016]
[1641646040410,2.00479,3200.2,3200.1,1.3222016]
[1641646040616,2.269578,3200.2,3200.1,1.3222016]
[1641646041217,2.269578,3200.2,3200.0,0.031]
[1641646041610,3.136078,3200.2,3200.0,0.031]
[1641646042013,38.25592404,3200.2,3199.4,3.3269916]
[1641646042210,1.5,3199.6,3199.4,1.3222016]
[1641646042410,3.83252735,3199.5,3199.1,0.69547889]
[1641646042610,1.5,3199.2,3199.0,1.58955404]
[1641646042809,1.764788,3199.1,3199.0,1.58955404]
[1641646043010,8.940056,3199.1,3199.0,1.58955404]
[1641646043211,3.079437,3199.1,3199.0,5.404e-05]
[1641646043416,2.43865,3199.1,3198.5,2.64353307]
[1641646043612,2.173862,3199.1,3198.5,2.64353307]
[1641646044014,2.202595,3199.4,3198.5,2.64353307]
[1641646044211,2.19813,3199.0,3198.5,3.49773307]
[1641646044411,2.19813,3199.0,3198.7,2.00479]
[1641646044612,0.264788,3199.1,3198.7,2.00479]
[1641646044812,0.264788,3199.1,3198.5,2.64353307]
[1641646045013,0.989188,3199.1,3198.2,2.00479]
[1641646045211,2.163244,3199.0,3198.2,2.00479]
[1641646045611,0.264788,3198.9,3198.2,2.00479]
[1641646046214,0.8998,3199.0,3198.2,2.00479]
[1641646046416,2.00479,3198.6,3198.1,0.031]
[1641646048416,0.75775677,3200.2,3198.5,3.06053174]
[1641646048616,1.02127502,3200.4,3200.1,3.05933144]
[1641646048918,0.69723112,3201.4,3200.3,1.498]
[1641646049115,0.22133112,3201.4,3201.3,1.498]
[1641646049319,1.41806679,3201.9,3201.3,2.46879]
[1641646049515,3.75275468,3202.3,3201.8,3.05873686]
[1641646049715,1.44257732,3202.3,3201.9,0.07806]
[1641646049917,3.06073686,3204.1,3201.9,14.3850027]
[1641646050119,1.5,3204.1,3202.7,1.56025226]
[1641646050318,1.56025226,3205.3,3202.7,0.9051]
[1641646050319,7.92414406,3204.5,3202.7,0.9051]
[1641646050518,1.5,3202.8,3202.7,0.9051]
[1641646051221,0.264788,3202.8,3202.4,2.00479]
[1641646051424,1.5,3202.5,3202.4,2.00479]
[1641646051621,1.764788,3202.5,3202.4,2.00479]
[1641646052222,1.764788,3202.5,3200.7,0.6528]
[1641646052425,3.117678,3202.5,3201.7,2.00479]
[1641646052632,1.5,3201.8,3201.7,2.00479]
[1641646053234,0.640787,3202.4,3201.7,2.00479]
[1641646053433,1.764788,3202.3,3201.7,2.00479]
[1641646053834,0.264788,3202.3,3201.7,2.00479]
[1641646055537,1.5,3201.8,3201.7,2.00479]
[1641646055737,1.764788,3201.8,3201.4,2.00479]
[1641646055939,0.905575,3201.8,3201.4,2.00479]
[1641646059440,2.405575,3201.8,3201.4,2.00479]
[1641646061144,1.5,3201.5,3200.9,2.00479]
[1641646061344,1.5,3201.0,3200.9,2.00479]
[1641646061544,2.2057,3201.0,3200.7,0.79201793]
[1641646061746,1.5,3200.8,3200.7,0.79201793]
[1641646062347,1.764788,3200.8,3200.7,0.79201793]
[1641646062946,1.764788,3200.8,3200.4,2.00479]
[1641646063145,1.5,3200.5,3200.4,2.00479]
[1641646064947,2.00479,3200.8,3200.4,2.00479]
[1641646065948,3.50479,3200.8,3200.4,2.00479]
[1641646066549,1.5,3200.6,3200.4,2.00479]
[1641646068351,2.269578,3200.8,3200.4,2.00479]
[1641646068753,2.00479,3200.8,3200.4,2.00479]
[1641646069352,2.00479,3200.8,3200.5,0.0781]
[1641646069553,2.00479,3200.8,3200.5,0.9039]
[1641646069952,1.5,3201.5,3200.5,0.9039]
[1641646070351,1.5,3201.8,3200.5,2.4654655]
[1641646070550,2.00479,3201.6,3200.5,2.4654655]
[1641646070752,3.50479,3201.6,3200.7,0.79201793]
[1641646071052,3.50479,3201.6,3200.7,0.87011793]
[1641646071252,2.00479,3201.6,3200.7,0.87011793]
[1641646071652,1.5,3201.4,3200.7,0.87011793]
[1641646072054,2.00479,3201.6,3200.7,0.87011793]
[1641646072253,1.5,3201.1,3200.7,0.87011793]
[1641646072652,1.5,3201.1,3200.7,0.79201793]
[1641646073254,1.5,3201.1,3200.8,0.79201793]
[1641646073553,1.5,3201.1,3200.9,0.0781]
[1641646073753,1.5,3201.0,3200.8,0.79201793]
[1641646073954,1.5,3201.8,3200.8,0.79201793]
[1641646074354,1.5,3200.9,3200.8,0.79201793]
[1641646074754,1.5,3200.9,3200.8,2.79680793]
[1641646075554,1.5,3200.9,3200.8,2.00479]
[1641646076254,1.5,3201.2,3200.8,2.00479]
[1641646076456,1.5,3201.2,3200.8,2.94339]
[1641646076655,1.5,3201.2,3200.9,2.00479]
[1641646076859,2.00479,3202.0,3200.9,2.00479]
[1641646077456,2.194229,3201.9,3200.9,2.00479]
[1641646077956,2.194229,3201.9,3200.7,0.79201793]
[1641646077957,1.5,3201.0,3200.7,0.79201793]
[1641646078157,3.0,3200.8,3200.7,0.79201793]
[1641646078557,1.5,3200.8,3200.7,0.79201793]
[1641646078758,3.50479,3200.8,3200.7,0.79201793]
[1641646078957,3.50479,3200.8,3200.3,0.79201793]
[1641646079160,1.5,3200.4,3200.3,0.79201793]
[1641646079959,2.00479,3200.8,3200.3,0.79201793]
[1641646080161,2.269578,3200.8,3200.3,0.79201793]
[1641646080362,0.264788,3200.8,3200.1,2.79680793]
[1641646080761,1.5,3200.2,3200.1,2.79680793]
[1641646081562,1.5,3200.5,3200.2,0.79201793]
[1641646081762,3.0,3200.3,3200.2,1.29055022]
[1641646081961,3.9031,3200.3,3200.2,1.29055022]
[1641646082264,4.167888,3200.3,3199.7,1.31997236]
[1641646082462,1.5,3199.8,3199.7,1.31997236]
[1641646083064,1.5,3199.8,3199.4,2.00479]
[1641646084066,2.00479,3200.2,3199.4,2.00479]
[1641646084365,2.00479,3200.2,3199.5,0.07811]
[1641646084565,1.5,3200.8,3199.5,0.07811]
[1641646084766,2.00479,3201.1,3200.0,2.00479]
[1641646084965,1.5,3200.8,3200.1,0.0781]
[1641646085165,1.5,3200.2,3199.5,0.0781]
[1641646085364,1.5,3200.6,3199.5,1.39807236]
[1641646085566,1.5,3199.6,3199.5,1.31997236]
[1641646085767,2.2432,3199.6,3199.5,1.31997236]
[1641646086066,0.7432,3199.6,3199.5,1.31997236]
[1641646086267,2.2432,3199.6,3199.5,1.31997236]
[1641646086567,2.2432,3199.6,3199.4,2.00479]
[1641646086568,0.7432,3199.6,3199.4,2.00479]
[1641646086767,1.5,3200.2,3199.5,2.08292]
[1641646086969,0.264788,3200.1,3199.5,2.08292]
[1641646087367,0.905575,3200.1,3199.5,2.08292]
[1641646087566,0.905575,3200.1,3199.6,0.93120616]
[1641646087767,0.905575,3200.1,3199.5,3.32476236]
[1641646088368,1.5,3199.6,3199.5,3.32476236]
[1641646088568,1.764788,3199.6,3199.5,1.31997236]
[1641646089170,1.764788,3199.6,3199.4,1.31997236]
[1641646090471,1.764788,3199.6,3199.2,1.58396094]
[1641646090673,1.764788,3199.6,3199.1,0.031]
[1641646090872,0.264788,3199.6,3199.1,0.031]
[1641646091074,1.5,3199.2,3199.1,0.031]
[1641646091474,2.00479,3200.0,3199.1,0.031]
[1641646091675,1.5,3199.7,3199.2,0.07813]
[1641646091874,1.5,3199.3,3199.1,0.031]
[1641646092476,1.764788,3199.3,3199.1,0.031]
[1641646092674,1.764788,3199.3,3199.1,2.03579]
[1641646093773,1.5,3199.3,3199.1,2.03579]
[1641646094775,1.5,3199.6,3199.1,2.03579]
[1641646094974,3.50479,3200.0,3199.1,2.71272]
[1641646095176,2.00479,3200.0,3199.1,2.71272]
[1641646095675,2.00479,3200.0,3199.2,1.31997236]
[1641646095877,0.264788,3199.9,3199.2,1.31997236]
[1641646096076,1.5,3199.3,3199.2,1.31997236]
[1641646096476,1.764788,3199.3,3199.2,1.31997236]
[1641646097078,1.764788,3199.3,3199.1,0.031]
[1641646100488,1.5,3199.2,3198.7,3.32476236]
[1641646100784,1.5,3198.8,3198.7,1.31997236]
[1641646100983,2.352,3198.8,3198.7,1.31997236]
[1641646101188,4.802365,3198.8,3198.7,1.31997236]
[1641646101384,6.302365,3198.8,3198.7,1.31997236]
[1641646101786,6.302365,3198.8,3198.5,1.58396094]
[1641646101986,1.5,3198.6,3198.4,2.00479]
[1641646103387,1.5,3198.6,3198.5,0.49874984]
[1641646103586,0.264788,3198.8,3198.5,0.49874984]
[1641646103789,1.5,3198.6,3198.1,1.35097236]
[1641646103989,1.5,3198.3,3198.1,1.35097236]
[1641646104187,0.905575,3198.2,3198.1,1.35097236]
[1641646104587,0.905575,3198.2,3198.1,0.031]
[1641646105588,2.405575,3198.2,3198.1,0.031]
[1641646106190,2.405575,3198.2,3197.4,3.98948836]
[1641646106191,17.3392233,3198.2,3197.4,3.98948836]
[1641646106391,1.5,3197.5,3197.2,0.031]
[1641646106691,4.284983,3197.4,3197.2,0.031]
[1641646106891,2.00479,3197.3,3197.2,0.031]
[1641646107091,13.634788,3197.2,3196.7,2.63978582]
[1641646107292,1.5,3196.8,3196.7,2.63978582]
[1641646107493,1.5,3196.8,3196.3,0.031]
[1641646107791,1.5,3196.8,3196.2,3.996124]
[1641646107792,1.5,3196.4,3196.2,3.996124]
[1641646107993,1.56453389,3196.3,3196.0,2.64116919]
[1641646108191,1.5,3196.1,3196.0,2.64116919]
[1641646108591,7.436261,3196.1,3196.0,2.62336919]
[1641646108791,9.441051,3196.1,3196.0,2.62336919]
[1641646108991,22.811051,3196.1,3196.0,2.62336919]
[1641646109191,0.264788,3196.0,3195.4,0.031]
[1641646109393,1.5,3195.8,3195.4,0.031]
[1641646109793,0.264788,3195.7,3195.4,0.031]
[1641646110192,17.06516566,3195.5,3194.5,0.031]
[1641646110391,1.5,3194.6,3194.5,0.031]
[1641646110596,1.596475,3194.6,3194.5,0.031]
[1641646110794,0.6909,3194.6,3194.5,0.031]
[1641646111190,0.6909,3194.6,3194.5,0.295788]
[1641646111591,3.50479,3195.1,3194.5,0.295788]
[1641646112192,2.199749,3195.0,3194.5,0.295788]
[1641646112393,2.199749,3195.0,3194.6,0.264788]
[1641646113194,1.5,3194.8,3194.5,0.031]
[1641646113594,5.008373,3194.7,3194.5,0.031]
[1641646113993,2.00479,3195.1,3194.5,0.031]
[1641646114194,2.00479,3195.1,3194.6,0.264788]
[1641646114395,0.264788,3195.0,3194.6,0.264788]
[1641646114995,2.645577,3195.1,3194.6,0.264788]
[1641646115596,0.264788,3195.0,3194.5,0.031]
[1641646115798,2.476663,3195.0,3194.5,0.031]
[1641646115996,1.56533472,3194.6,3194.5,0.031]
[1641646116197,2.77202272,3194.6,3194.5,0.031]
[1641646116399,3.420795,3194.6,3194.5,0.031]
[1641646116596,6.48622774,3194.6,3193.5,0.031]
[1641646116797,2.00479,3194.0,3193.5,0.031]
[1641646116997,2.00479,3194.3,3193.6,0.264788]
[1641646117295,7.180928,3193.9,3193.6,0.264788]
[1641646117496,2.216893,3194.2,3193.6,0.264788]
[1641646117697,0.264688,3194.2,3193.6,0.264788]
[1641646117896,2.206108,3194.1,3193.6,0.264788]
[1641646118498,2.193866,3194.2,3193.6,0.264788]
[1641646118898,2.193866,3194.2,3193.7,2.00479]
[1641646119099,2.00479,3194.3,3193.8,0.264788]
[1641646119499,1.5,3194.5,3193.7,2.00479]
[1641646119700,0.5878,3194.3,3193.7,2.00479]
[1641646119899,7.193399,3194.2,3193.7,2.00479]
[1641646120100,0.264688,3194.2,3193.7,2.00479]
[1641646120300,0.264688,3194.2,3193.7,2.269578]
[1641646120498,7.180471,3194.1,3193.7,2.269578]
[1641646120699,2.171,3194.1,3193.7,2.269578]
[1641646120902,2.21778,3194.2,3193.7,4.274368]
[1641646121100,2.217013,3194.5,3193.7,4.274368]
[1641646121302,2.176518,3194.0,3193.7,4.274368]
[1641646121500,2.162446,3194.1,3193.7,4.274368]
[1641646121700,0.640787,3194.2,3193.7,4.274368]
[1641646121901,2.1837,3194.5,3193.7,4.274368]
[1641646122102,2.163956,3194.1,3193.7,4.274368]
[1641646122301,2.188235,3194.5,3193.7,4.274368]
[1641646122502,1.5,3194.2,3193.5,0.031]
[1641646122702,1.56575874,3193.8,3193.5,0.031]
[1641646122902,2.00479,3193.6,3193.5,0.031]
[1641646123102,2.269478,3193.6,3193.5,0.031]
[1641646123302,4.488721,3193.6,3193.5,0.031]
[1641646123703,5.129508,3193.6,3193.5,0.031]
[1641646124104,2.219243,3193.6,3193.5,0.031]
[1641646124504,2.193365,3193.7,3193.5,0.031]
[1641646124705,2.184086,3193.8,3193.5,0.031]
[1641646124904,2.165284,3193.6,3193.5,0.031]
[1641646125104,0.264688,3193.9,3193.5,0.031]
[1641646125307,2.201924,3193.7,3193.5,0.031]
[1641646125506,2.207278,3193.8,3193.5,0.031]
[1641646125707,1.56539843,3194.5,3193.5,0.295788]
[1641646125907,2.00479,3194.6,3193.5,0.295788]
[1641646126307,1.56539843,3194.5,3193.5,0.295788]
[1641646126808,2.00479,3194.6,3193.9,2.00479]
[1641646127008,0.905475,3194.5,3193.9,2.00479]
[1641646127208,0.905475,3194.5,3193.9,2.269578]
[1641646127608,2.00479,3194.6,3193.9,2.269578]
[1641646128808,2.00479,3194.6,3194.0,1.5]
[1641646129009,2.00479,3194.6,3193.9,2.269578]
[1641646129010,1.56551852,3194.3,3193.6,2.00479]
[1641646129210,0.640787,3194.5,3193.6,2.269578]
[1641646130609,2.00479,3194.6,3193.6,2.269578]
[1641646130809,2.00479,3194.6,3193.7,1.5]
[1641646131009,2.00479,3194.6,3194.2,1.5]
[1641646131212,2.00479,3194.6,3194.3,0.264788]
[1641646131409,2.00479,3194.6,3194.3,1.038988]
[1641646131912,2.00479,3194.9,3194.5,1.5]
[1641646132110,2.00479,3194.9,3194.6,0.264788]
[1641646132311,0.640787,3195.0,3194.3,0.7742]
[1641646132513,0.640787,3195.0,3194.0,2.00479]
[1641646132814,2.20593063,3195.0,3194.4,0.264788]
[1641646133013,0.264688,3194.9,3194.7,2.00479]
[1641646133614,1.56489625,3195.5,3194.7,2.00479]
[1641646133915,3.56962013,3195.7,3194.7,2.75129]
[1641646134713,1.56467588,3196.0,3195.1,1.5]
[1641646134914,1.56467588,3196.0,3195.8,2.00479]
[1641646135114,1.56467588,3196.0,3195.8,2.73889]
[1641646135318,13.37,3195.9,3195.7,0.264788]
[1641646135513,13.37,3195.9,3194.1,18.415]
[1641646135514,1.56496237,3195.8,3194.2,1.5]
[1641646135717,0.6528,3195.7,3194.2,1.5]
[1641646135914,0.9176,3196.0,3194.2,1.5]
[1641646136115,0.9176,3196.0,3194.5,1.5]
[1641646136416,0.640787,3196.1,3194.5,1.5]
[1641646136814,5.007354,3196.0,3194.2,0.07824]
[1641646137015,2.00479,3195.3,3194.5,2.00479]
[1641646137417,0.905575,3195.2,3194.5,2.00479]
[1641646139019,1.5,3194.8,3193.7,19.8165]
[1641646139217,7.668941,3195.1,3193.3,18.6277]
[1641646139416,1.56535433,3194.6,3193.3,18.6277]
[1641646139817,1.56535433,3194.6,3193.2,1.5]
[1641646140018,1.56535433,3194.6,3192.9,21.45875]
[1641646140219,1.56535433,3194.6,3193.1,1.5]
[1641646140421,1.56535433,3194.6,3193.4,1.5]
[1641646140820,1.56535433,3194.6,3193.2,1.5]
[1641646141120,1.56535433,3194.6,3193.5,2.03579]
[1641646141121,2.00479,3194.3,3193.5,2.03579]
[1641646141319,1.56522447,3194.9,3193.5,2.03579]
[1641646141521,15.4945,3195.2,3193.5,2.03579]
[1641646141721,0.6245,3195.2,3194.2,1.5]
[1641646141920,2.195623,3194.8,3194.2,1.56468322]
[1641646142120,23.1028,3195.6,3194.0,0.8881]
[1641646142121,0.905575,3194.7,3194.1,0.07824]
[1641646142322,3.104352,3194.7,3193.5,2.03579]
[1641646142521,1.56555283,3194.2,3193.5,2.03579]
[1641646142722,24.66768155,3195.6,3194.1,1.5]
[1641646143021,2.00479,3195.9,3195.1,2.00479]
[1641646143221,2.160036,3195.5,3195.1,2.67659]
[1641646143421,2.212987,3195.8,3195.1,2.67659]
[1641646143821,2.215428,3195.4,3195.1,2.67659]
[1641646144023,0.264788,3195.7,3195.1,2.67659]
[1641646144222,2.828762,3195.6,3195.1,2.67659]
[1641646144427,2.166743,3195.3,3195.1,2.67659]
[1641646144624,0.640787,3195.6,3195.1,2.67659]
[1641646145226,0.640787,3195.6,3194.2,0.07822]
[1641646145227,3.0650432,3195.2,3194.2,0.07822]
[1641646145425,5.5,3194.7,3192.9,0.78626282]
[1641646145626,13.37,3194.6,3192.8,19.9934]
[1641646145829,1.56558469,3194.1,3192.8,19.9934]
[1641646146024,0.264788,3194.0,3192.7,6.16026282]
[1641646146225,0.640787,3193.9,3192.7,0.78626282]
[1641646146425,0.264788,3193.8,3192.7,0.78626282]
[1641646146626,2.474051,3193.8,3192.8,1.5]
[1641646146825,2.209263,3193.8,3192.7,0.78626282]
[1641646147027,2.209263,3193.8,3193.4,2.00479]
[1641646151730,0.07796956,3193.8,3193.5,0.6689]
[1641646152629,2.00479,3194.1,3193.7,1.5]
[1641646152830,2.00479,3194.1,3194.0,1.5]
[1641646153032,2.00479,3195.0,3194.0,3.50479]
[1641646153230,2.00479,3195.0,3194.2,1.5]
[1641646153433,2.00479,3195.0,3194.2,0.7102]
[1641646154032,2.00479,3195.0,3194.2,2.2102]
[1641646154236,2.00479,3195.0,3194.7,1.5]
[1641646154434,1.56465629,3196.0,3194.6,1.5]
[1641646154934,1.56465629,3196.0,3195.0,1.5]
[1641646155130,1.56465629,3196.0,3195.1,2.00479]
[1641646155131,2.00479,3195.8,3195.1,2.00479]
[1641646156131,0.640787,3195.7,3195.1,2.00479]
[1641646156833,2.00479,3195.8,3195.1,2.00479]
[1641646157032,2.00479,3195.8,3195.1,3.50479]
[1641646158032,2.00479,3195.8,3195.1,2.00479]
[1641646159335,2.00479,3195.8,3195.1,2.94249]
[1641646160137,2.00479,3195.8,3195.1,4.44249]
[1641646161738,55.7734,3197.2,3195.7,1.5]
[1641646161739,0.6528,3196.8,3195.7,1.5]
[1641646161940,1.56405428,3197.3,3195.9,1.5]
[1641646162139,0.76039217,3197.6,3195.9,2.42122681]
[1641646162638,1.56398089,3197.4,3195.9,0.8574]
[1641646163441,1.56398089,3197.4,3195.9,2.3574]
[1641646163641,2.00479,3197.7,3195.9,2.3574]
[1641646163841,1.56403716,3197.3,3195.9,2.3574]
[1641646164742,1.56403716,3197.3,3195.9,0.8574]
[1641646164944,1.56403716,3197.3,3195.5,2.29503716]
[1641646165149,3.56882716,3197.3,3196.6,2.00479]
[1641646165342,0.905575,3197.2,3196.6,2.00479]
[1641646167347,5.004848,3197.1,3196.6,2.00479]
[1641646167547,0.905575,3197.2,3196.6,2.00479]
[1641646168351,1.66596717,3197.2,3196.6,2.00479]
[1641646169555,0.76039217,3197.1,3196.6,2.00479]
[1641646169954,0.264788,3197.0,3196.6,2.00479]
[1641646170758,1.5,3196.7,3195.6,22.3216]
[1641646170959,1.5,3196.7,3195.4,23.48376282]
[1641646170960,1.5,3196.4,3195.4,0.78626282]
[1641646171159,1.5,3196.4,3195.8,2.00479]
[1641646171160,0.5956,3196.4,3195.8,2.00479]
[1641646171360,1.56465874,3196.0,3195.8,2.00479]
[1641646172160,0.264788,3195.9,3195.8,2.00479]
[1641646173160,1.56465874,3196.0,3195.8,2.00479]
[1641646173362,0.264788,3196.2,3195.8,2.00479]
[1641646174763,1.56462936,3196.1,3195.8,2.00479]
[1641646175164,1.82941736,3196.1,3195.8,2.00479]
[1641646176665,1.56462936,3196.1,3195.8,2.00479]
[1641646176864,1.40117917,3196.3,3195.8,2.00479]
[1641646177465,0.76039217,3196.3,3195.8,2.00479]
[1641646177665,0.76039217,3196.3,3195.8,2.78819]
[1641646178065,2.00479,3196.5,3195.8,2.78819]
[1641646178266,1.7742484,3196.6,3195.8,2.78819]
[1641646178267,0.76039217,3196.6,3195.8,2.78819]
[1641646178465,0.76039217,3196.6,3195.9,1.5]
[1641646179065,0.76039217,3196.6,3196.5,4.00958]
[1641646179265,0.76039217,3196.6,3196.5,4.95808]
[1641646179468,1.01385623,3196.8,3196.5,4.95808]
[1641646179666,0.76039217,3197.2,3196.5,4.95808]
[1641646180971,2.00479,3197.3,3196.6,0.0782]
[1641646181172,2.00479,3197.3,3196.9,2.00479]
[1641646185677,2.645577,3197.3,3196.9,2.00479]
[1641646185878,3.06408119,3197.2,3196.5,2.00479]
[1641646186079,1.5,3197.0,3196.5,2.00479]
[1641646186377,1.5,3197.0,3195.6,1.31421234]
[1641646186378,1.56437725,3196.6,3195.6,1.31421234]
[1641646186578,1.56456572,3196.2,3195.6,1.31421234]
[1641646186777,1.56456572,3196.2,3195.7,0.78626282]
[1641646187177,1.56456572,3196.2,3195.8,2.00479]
[1641646188178,0.905575,3196.3,3195.8,2.00479]
[1641646188378,3.56922354,3196.5,3195.8,2.00479]
[1641646188579,2.00479,3196.5,3195.8,2.00479]
[1641646189578,2.00479,3196.5,3195.8,2.63289]
[1641646190882,0.76039217,3197.2,3195.8,2.63289]
[1641646191084,4.32919731,3197.3,3195.8,2.63289]
[1641646191283,4.26518217,3197.3,3196.4,2.00479]
[1641646191481,2.76518217,3197.3,3196.4,2.00479]
[1641646193285,1.56415948,3197.0,3196.4,2.00479]
[1641646193483,0.905575,3196.9,3196.4,2.00479]
[1641646194887,0.640787,3196.9,3196.4,2.00479]
[1641646199292,2.76518217,3197.3,3196.4,2.00479]
[1641646200395,2.00479,3197.3,3196.4,2.00479]
[1641646201594,2.00479,3197.3,3196.4,3.50479]
[1641646202094,2.00479,3197.3,3196.4,2.00479]
[1641646202996,0.03,3197.5,3196.9,1.5]
[1641646203196,0.03,3197.5,3197.4,4.00958]
[1641646203597,0.76039217,3197.7,3197.4,4.00958]
[1641646203797,1.01385623,3198.0,3197.5,0.07817]
[1641646204698,0.03,3198.4,3197.5,0.07817]
[1641646204897,0.03,3198.4,3197.4,4.00958]
[1641646205299,0.03,3198.4,3198.1,2.00479]
[1641646206698,0.294788,3198.4,3198.1,2.00479]
[1641646207300,0.294788,3198.4,3197.4,2.00479]
[1641646207501,0.987688,3198.4,3197.4,2.00479]
[1641646207901,1.5,3198.1,3196.6,1.31421234]
[1641646208100,1.5,3197.9,3196.6,1.31421234]
[1641646208301,1.5,3197.7,3196.6,1.31421234]
[1641646208501,1.56392953,3197.5,3196.4,23.1585]
[1641646208704,1.56392953,3197.5,3196.0,6.76639234]
[1641646209305,1.56392953,3197.5,3197.0,2.00479]
[1641646209503,0.905575,3197.4,3197.0,2.00479]
[1641646213708,0.640787,3197.4,3197.0,2.00479]
[1641646213911,4.58246815,3197.7,3197.0,2.00479]
[1641646214314,3.01864623,3197.7,3197.0,2.00479]
[1641646215317,2.00479,3197.7,3197.0,2.00479]
[1641646215714,2.00479,3197.7,3197.1,0.07817]
[1641646216315,1.01385623,3198.3,3197.1,0.07817]
[1641646216918,1.01385623,3198.3,3197.3,1.5]
[1641646217117,1.01385623,3198.3,3197.4,0.07817]
[1641646217317,1.01385623,3198.3,3198.1,2.00479]
[1641646217519,1.01385623,3198.3,3198.1,2.96419]